bitfinex/quotes_SOLUSD_20241220
["timestamp","ask_amount","ask_price","bid_price","bid_amount"]
[1734656799360,0.95855144,195.63,195.58,36.71621346]
[1734656800477,23.776884,195.62,195.56,36.71621346]
[1734656800776,0.95873747,195.63,195.56,36.71621346]
[1734656800957,1.6653,195.64,195.6,36.71621346]
[1734656801162,23.776884,195.69,195.62,36.71621346]
[1734656801373,1.6653,195.71,195.64,36.71621346]
[1734656801551,1.6653,195.71,195.66,36.71621346]
[1734656801976,0.95817861,195.7,195.65,36.71621346]
[1734656802284,2.62357107,195.71,195.65,36.71621346]
[1734656803080,23.776884,195.7,195.63,36.71621346]
[1734656803282,0.95831139,195.69,195.63,36.71621346]
[1734656803668,0.95824107,195.69,195.63,36.71621346]
[1734656803991,24.73515819,195.7,195.63,36.71621346]
[1734656805277,23.776884,195.7,195.63,36.71621346]
[1734656805579,0.95821473,195.69,195.63,36.71621346]
[1734656806080,23.776884,195.68,195.63,36.71621346]
[1734656806269,23.776884,195.68,195.61,36.71621346]
[1734656806581,23.776884,195.68,195.63,36.71621346]
[1734656807381,23.776884,195.68,195.61,36.71621346]
[1734656807679,60.49309746,195.66,195.57,36.71621346]
[1734656807984,23.776884,195.63,195.57,36.71621346]
[1734656808177,24.73546896,195.63,195.57,36.71621346]
[1734656808367,24.73546583,195.63,195.57,36.71621346]
[1734656808996,23.776884,195.63,195.59,36.71621346]
[1734656809695,0.95854995,195.62,195.57,36.71621346]
[1734656809982,24.73547212,195.64,195.57,36.71621346]
[1734656810783,61.45168558,195.64,195.57,36.71621346]
[1734656812984,47.34255121,195.64,195.56,22.60707909]
[1734656814274,23.776884,195.61,195.54,22.60707909]
[1734656814479,23.776884,195.59,195.54,22.60707909]
[1734656815396,23.776884,195.6,195.54,22.60707909]
[1734656815601,23.776884,195.6,195.56,22.60707909]
[1734656815781,23.776884,195.62,195.56,22.60707909]
[1734656815968,23.776884,195.6,195.56,22.60707909]
[1734656816291,0.95871923,195.59,195.54,22.60707909]
[1734656816867,23.776884,195.6,195.54,22.60707909]
[1734656817582,23.776884,195.58,195.52,22.60707909]
[1734656817781,23.776884,195.56,195.48,22.60707909]
[1734656818090,23.776884,195.54,195.48,22.60707909]
[1734656818294,0.95906629,195.53,195.48,22.60707909]
[1734656818966,23.776884,195.52,195.48,22.60707909]
[1734656819167,23.776884,195.5,195.43,22.60707909]
[1734656819391,0.95929856,195.49,195.43,22.60707909]
[1734656819691,0.95915865,195.57,195.48,22.60707909]
[1734656819894,1.5547,195.59,195.54,22.60707909]
[1734656820270,22.60707909,195.63,195.56,22.60707909]
[1734656820479,0.95859446,195.62,195.56,22.60707909]
[1734656820894,0.95856858,195.64,195.58,22.60707909]
[1734656821412,0.95856858,195.64,195.52,12.7861]
[1734656821413,23.56564767,195.64,195.56,22.60707909]
[1734656821615,6.5212,195.66,195.6,22.60707909]
[1734656821911,7.47964766,195.66,195.6,22.60707909]
[1734656822212,6.5212,195.66,195.6,22.60707909]
[1734656822385,0.95837505,195.65,195.6,22.60707909]
[1734656822590,6.5212,195.66,195.6,22.60707909]
[1734656822799,0.95848547,195.65,195.58,22.60707909]
[1734656823098,23.776884,195.64,195.58,36.73108655]
[1734656823412,23.776884,195.62,195.58,36.73108655]
[1734656824102,23.776884,195.62,195.56,36.73108655]
[1734656824483,23.776884,195.63,195.56,36.73108655]
[1734656824680,23.776884,195.61,195.54,36.73108655]
[1734656824903,36.73108655,195.56,195.48,36.73108655]
[1734656825121,36.73108655,195.54,195.46,36.73108655]
[1734656825287,36.73108655,195.54,195.45,36.73108655]
[1734656825288,36.73108655,195.52,195.45,36.73108655]
[1734656825480,23.776884,195.51,195.45,36.73108655]
[1734656825812,24.73599398,195.51,195.45,36.73108655]
[1734656826780,23.776884,195.49,195.43,36.73108655]
[1734656826983,23.776884,195.47,195.41,36.73108655]
[1734656827277,0.95938297,195.46,195.41,36.73108655]
[1734656827487,23.776884,195.45,195.41,36.73108655]
[1734656827692,0.95947408,195.44,195.39,36.73108655]
[1734656828205,23.776884,195.45,195.39,36.73108655]
[1734656828378,36.73108655,195.48,195.41,36.73108655]
[1734656828379,23.776884,195.46,195.41,36.73108655]
[1734656828599,23.776884,195.44,195.39,36.73108655]
[1734656828781,23.776884,195.42,195.37,36.73108655]
[1734656828994,38.33668655,195.47,195.39,36.73108655]
[1734656829190,0.95940409,195.46,195.39,36.73108655]
[1734656829387,37.69049064,195.51,195.44,36.73108655]
[1734656829682,23.776884,195.5,195.44,36.73108655]
[1734656829882,0.95921343,195.49,195.44,36.73108655]
[1734656830199,0.95921343,195.49,195.45,36.73108655]
[1734656830200,0.95925594,195.49,195.45,36.73108655]
[1734656830402,24.73611084,195.5,195.45,36.73108655]
[1734656830602,24.42940084,195.5,195.45,36.73108655]
[1734656831199,1.6056,195.53,195.47,36.73108655]
[1734656831407,2.56463319,195.53,195.46,36.73108655]
[1734656831591,36.73108655,195.51,195.44,36.73108655]
[1734656831912,37.69037313,195.5,195.42,36.73108655]
[1734656832096,39.29586479,195.53,195.45,36.73108655]
[1734656832294,36.73108655,195.52,195.44,36.73108655]
[1734656832500,37.69029552,195.51,195.43,36.73108655]
[1734656832810,36.73108655,195.48,195.42,36.73108655]
[1734656833012,23.776884,195.45,195.39,36.73108655]
[1734656833189,0.95952925,195.44,195.38,36.73108655]
[1734656833907,36.73108655,195.5,195.42,36.73108655]
[1734656834109,36.73108655,195.5,195.36,36.73108655]
[1734656834110,61.46719585,195.49,195.41,36.73108655]
[1734656834314,60.50797055,195.46,195.39,36.73108655]
[1734656834497,60.50797055,195.44,195.36,36.73108655]
[1734656834698,23.776884,195.42,195.36,36.73108655]
[1734656834903,23.776884,195.44,195.39,36.73108655]
[1734656835095,23.776884,195.46,195.41,36.73108655]
[1734656835604,23.776884,195.47,195.41,36.73108655]
[1734656835805,23.776884,195.45,195.41,36.73108655]
[1734656836314,23.776884,195.45,195.4,36.73108655]
[1734656837229,36.73108655,195.52,195.44,36.73108655]
[1734656837432,57.69035583,195.51,195.43,36.73108655]
[1734656837600,39.2959018,195.53,195.46,36.73108655]
[1734656837982,39.2959018,195.53,195.45,36.73108655]
[1734656838222,36.73108655,195.5,195.43,36.73108655]
[1734656838427,36.73108655,195.48,195.4,36.73108655]
[1734656838610,0.95939669,195.47,195.4,36.73108655]
[1734656838788,0.95939669,195.47,195.41,36.73108655]
[1734656839529,0.95939669,195.47,195.35,13.37389582]
[1734656839530,23.776884,195.46,195.4,36.73108655]
[1734656839713,0.95951832,195.45,195.39,36.73108655]
[1734656839889,23.776884,195.44,195.39,36.73108655]
[1734656841533,23.776884,195.42,195.35,36.73108655]
[1734656841824,24.73656053,195.42,195.35,36.73108655]
[1734656844500,36.73108655,195.37,195.29,36.73108655]
[1734656844707,36.73108655,195.34,195.26,36.73108655]
[1734656845036,0.9600755,195.33,195.26,22.67698952]
[1734656845499,23.776884,195.35,195.3,22.67698952]
[1734656845824,24.73680344,195.35,195.3,22.67698952]
[1734656846019,47.41379296,195.35,195.27,22.67698952]
[1734656846324,22.67698952,195.33,195.25,22.67698952]
[1734656846502,23.776884,195.31,195.25,22.67698952]
[1734656846703,23.776884,195.29,195.24,22.67698952]
[1734656846896,23.776884,195.27,195.2,22.67698952]
[1734656847095,23.776884,195.25,195.2,22.67698952]
[1734656847295,23.776884,195.27,195.22,22.67698952]
[1734656847526,23.776884,195.27,195.23,22.67698952]
[1734656848116,23.776884,195.33,195.26,22.67698952]
[1734656848317,23.776884,195.33,195.19,12.808]
[1734656848318,7.6352,195.36,195.32,22.67698952]
[1734656848497,0.95976037,195.39,195.34,22.67698952]
[1734656848697,22.67698952,195.39,195.32,22.67698952]
[1734656848899,0.95989152,195.38,195.28,22.67698952]
[1734656849196,22.67698952,195.33,195.26,22.67698952]
[1734656849503,0.9601433,195.32,195.26,22.67698952]
[1734656850028,23.776884,195.31,195.26,22.67698952]
[1734656850427,24.73694665,195.32,195.26,22.67698952]
[1734656850744,24.73694665,195.32,195.25,22.67698952]
[1734656850898,47.41393617,195.32,195.25,22.67698952]
[1734656851300,47.41393617,195.32,195.2,0.57772644]
[1734656851301,23.776884,195.3,195.23,22.67698952]
[1734656851523,23.776884,195.28,195.23,22.67698952]
[1734656852104,22.67698952,195.32,195.25,22.67698952]
[1734656852304,23.776884,195.3,195.25,22.67698952]
[1734656852506,23.776884,195.34,195.27,22.67698952]
[1734656852701,23.776884,195.32,195.27,22.67698952]
[1734656853027,23.63708032,195.38,195.31,22.67698952]
[1734656853233,22.67698952,195.4,195.33,22.67698952]
[1734656853443,0.95973033,195.39,195.33,22.67698952]
[1734656853599,24.19798952,195.43,195.35,22.67698952]
[1734656853806,7.07379975,195.42,195.36,22.67698952]
[1734656854031,7.07379975,195.42,195.37,22.67698952]
[1734656854202,29.06358952,195.47,195.4,22.67698952]
[1734656854540,6.3866,195.47,195.41,22.67698952]
[1734656854716,6.3866,195.47,195.42,22.67698952]
[1734656855228,0.95930168,195.46,195.41,22.67698952]
[1734656855407,7.34598062,195.47,195.41,22.67698952]
[1734656856199,7.34598062,195.47,195.38,22.67698952]
[1734656856200,46.45387352,195.46,195.38,22.67698952]
[1734656856403,23.776884,195.46,195.39,22.67698952]
[1734656856711,6.3866,195.47,195.42,22.67698952]
[1734656857034,0.95926352,195.49,195.43,22.67698952]
[1734656857216,0.9592605,195.5,195.43,22.67698952]
[1734656858732,6.4848,195.52,195.46,22.67698952]
[1734656859908,0.95909152,195.51,195.45,22.67698952]
[1734656860114,23.776884,195.5,195.43,22.67698952]
[1734656860412,24.73607115,195.5,195.43,22.67698952]
[1734656861025,23.776884,195.48,195.41,22.67698952]
[1734656861227,24.7362766,195.48,195.41,22.67698952]
[1734656861433,22.67698952,195.51,195.43,22.67698952]
[1734656861641,24.73613422,195.5,195.43,22.67698952]
[1734656862420,23.776884,195.48,195.41,22.67698952]
[1734656862734,23.776884,195.46,195.41,22.67698952]
[1734656863037,0.95944112,195.45,195.41,22.67698952]
[1734656863847,0.95944112,195.45,195.39,22.67698952]
[1734656864137,0.95944112,195.45,195.4,22.67698952]
[1734656864340,0.95951551,195.44,195.39,22.67698952]
[1734656865250,0.95952514,195.43,195.39,22.67698952]
[1734656865426,0.95957586,195.45,195.39,22.67698952]
[1734656865815,0.95957586,195.45,195.37,22.67698952]
[1734656866744,22.67698952,195.48,195.41,22.67698952]
[1734656866926,0.95953424,195.5,195.45,22.67698952]
[1734656867124,6.4848,195.52,195.48,22.67698952]
[1734656867547,1.6222,195.54,195.48,22.67698952]
[1734656867760,1.6222,195.54,195.49,22.67698952]
[1734656868063,1.6222,195.54,195.5,22.67698952]
[1734656868271,0.95902421,195.58,195.53,22.67698952]
[1734656868463,6.2176,195.62,195.56,22.67698952]
[1734656868628,6.2176,195.62,195.57,22.67698952]
[1734656868957,0.95862106,195.61,195.55,22.67698952]
[1734656869321,0.95862106,195.61,195.54,22.67698952]
[1734656870025,22.67698952,195.6,195.52,22.67698952]
[1734656870225,0.9588858,195.59,195.52,22.67698952]
[1734656870628,22.67698952,195.58,195.52,22.67698952]
[1734656870825,0.95887005,195.57,195.5,22.67698952]
[1734656871138,23.63585957,195.57,195.5,22.67698952]
[1734656871331,22.67698952,195.54,195.46,22.67698952]
[1734656871538,0.95913496,195.53,195.46,22.67698952]
[1734656871733,0.95913496,195.53,195.48,22.67698952]
[1734656871932,0.95907749,195.55,195.48,22.67698952]
[1734656873564,22.67698952,195.58,195.5,22.67698952]
[1734656873732,0.95889342,195.57,195.5,22.67698952]
[1734656873929,22.67698952,195.6,195.54,22.67698952]
[1734656874243,0.95875886,195.61,195.55,22.67698952]
[1734656875337,6.2176,195.62,195.55,22.67698952]
[1734656875557,0.95861795,195.61,195.55,22.67698952]
[1734656875747,6.2176,195.62,195.55,22.67698952]
[1734656876132,6.2176,195.62,195.57,22.67698952]
[1734656876337,22.67698952,195.6,195.53,23.25182257]
[1734656877840,22.67698952,195.56,195.49,22.67698952]
[1734656878036,22.67698952,195.55,195.51,20.0]
[1734656878667,22.67698952,195.55,195.5,20.0]
[1734656879366,22.67698952,195.53,195.45,22.67698952]
[1734656880265,0.95902266,195.52,195.45,22.67698952]
[1734656880459,22.67698952,195.51,195.43,23.25249916]
[1734656880757,22.67698952,195.51,195.45,22.67698952]
[1734656880970,22.67698952,195.51,195.46,0.57550284]
[1734656881146,22.67698952,195.53,195.48,20.0]
[1734656881348,22.67698952,195.56,195.5,46.45387352]
[1734656881555,22.67698952,195.58,195.53,20.0]
[1734656881750,22.67698952,195.59,195.54,0.57491628]
[1734656881955,22.67698952,195.58,195.53,20.0]
[1734656882655,22.67698952,195.57,195.53,20.0]
[1734656882853,14.3516,195.65,195.54,42.67698952]
[1734656882854,22.67698952,195.61,195.54,42.67698952]
[1734656883051,6.5155,195.67,195.59,22.67698952]
[1734656883052,29.19248952,195.67,195.59,22.67698952]
[1734656883258,22.67698952,195.68,195.6,23.25122615]
[1734656883666,22.67698952,195.65,195.58,22.67698952]
[1734656883983,22.67698952,195.61,195.56,20.0]
[1734656885175,22.67698952,195.61,195.53,22.67698952]
[1734656885885,0.95855624,195.6,195.53,22.67698952]
[1734656886096,22.67698952,195.61,195.51,0.57448729]
[1734656886097,22.67698952,195.59,195.54,20.0]
[1734656886591,22.67698952,195.59,195.53,20.0]
[1734656887111,22.67698952,195.59,195.51,23.25147681]
[1734656888088,22.67698952,195.59,195.51,22.67698952]
[1734656889273,22.67698952,195.57,195.5,20.0]
[1734656889479,22.67698952,195.57,195.49,22.67698952]
[1734656891099,22.67698952,195.55,195.5,20.0]
[1734656891501,22.67698952,195.52,195.45,22.67698952]
[1734656891685,22.67698952,195.52,195.43,35.46858952]
[1734656892577,22.67698952,195.52,195.44,23.776884]
[1734656892774,22.67698952,195.48,195.41,22.67698952]
[1734656892978,22.67698952,195.48,195.4,22.67698952]
[1734656893193,22.67698952,195.5,195.42,22.67698952]
[1734656894073,22.67698952,195.51,195.44,22.67698952]
[1734656895096,22.67698952,195.5,195.44,23.776884]
[1734656895296,22.67698952,195.51,195.44,22.67698952]
[1734656895600,22.67698952,195.52,195.44,23.25269823]
[1734656896202,22.67698952,195.55,195.48,22.67698952]
[1734656896411,22.67698952,195.57,195.49,22.67698952]
[1734656896780,22.67698952,195.56,195.49,22.67698952]
[1734656897100,22.67698952,195.56,195.48,43.25230278]
[1734656897596,22.67698952,195.56,195.49,23.776884]
[1734656898180,22.67698952,195.55,195.49,23.776884]
[1734656898499,22.67698952,195.51,195.44,22.67698952]
[1734656898876,22.67698952,195.58,195.5,22.67698952]
[1734656899396,22.67698952,195.58,195.51,23.776884]
[1734656899629,22.67698952,195.58,195.51,24.35209509]
[1734656901089,0.95870861,195.57,195.5,22.67698952]
[1734656901396,22.67698952,195.58,195.5,22.67698952]
[1734656901596,22.67698952,195.58,195.51,23.776884]
[1734656901907,22.67698952,195.58,195.51,24.35197486]
[1734656902198,22.67698952,195.56,195.48,23.25214995]
[1734656902401,22.67698952,195.56,195.49,23.776884]
[1734656902603,7.7402,195.6,195.44,35.46848952]
[1734656902604,22.67698952,195.52,195.44,35.46848952]
[1734656902808,22.67698952,195.5,195.4,13.36904486]
[1734656902977,22.67698952,195.48,195.4,22.67698952]
[1734656904580,22.67698952,195.48,195.41,23.776884]
[1734656905301,22.67698952,195.48,195.41,24.35300591]
[1734656905492,22.67698952,195.5,195.42,22.67698952]
[1734656905900,22.67698952,195.48,195.41,23.776884]
[1734656906213,22.67698952,195.5,195.42,22.67698952]
[1734656907001,22.67698952,195.48,195.42,23.776884]
[1734656907377,22.67698952,195.48,195.41,0.57601707]
[1734656907378,22.67698952,195.48,195.4,22.67698952]
[1734656907583,22.67698952,195.48,195.41,23.776884]
[1734656908004,0.95927126,195.47,195.4,22.67698952]
[1734656908308,22.67698952,195.44,195.36,22.67698952]
[1734656908888,22.67698952,195.42,195.34,22.67698952]
[1734656910606,22.67698952,195.42,195.35,23.776884]
[1734656911280,22.67698952,195.44,195.36,22.67698952]
[1734656911485,29.05858952,195.48,195.4,22.67698952]
[1734656911815,29.05858952,195.48,195.4,23.25313207]
[1734656911982,22.67698952,195.47,195.4,0.57614255]
[1734656912297,22.67698952,195.43,195.35,46.45387352]
[1734656912790,22.67698952,195.45,195.37,22.67698952]
[1734656913397,22.67698952,195.43,195.36,22.67698952]
[1734656913781,22.67698952,195.41,195.34,22.67698952]
[1734656914287,22.67698952,195.41,195.32,22.67698952]
[1734656914288,0.95962625,195.4,195.32,22.67698952]
[1734656914489,22.67698952,195.41,195.32,22.67698952]
[1734656914895,22.67698952,195.39,195.32,22.67698952]
[1734656915094,22.67698952,195.35,195.28,22.67698952]
[1734656915313,1.5061,195.37,195.25,22.67698952]
[1734656915314,22.67698952,195.33,195.25,22.67698952]
[1734656915496,22.67698952,195.31,195.25,22.67698952]
[1734656915897,22.67698952,195.29,195.21,22.67698952]
[1734656916098,0.96022176,195.28,195.21,22.67698952]
[1734656916295,22.67698952,195.27,195.19,22.67698952]
[1734656916501,22.67698952,195.24,195.16,22.67698952]
[1734656916899,22.67698952,195.23,195.15,22.67698952]
[1734656917098,22.67698952,195.2,195.13,22.67698952]
[1734656917303,22.67698952,195.17,195.1,22.67698952]
[1734656917502,22.67698952,195.16,195.09,22.67698952]
[1734656917817,22.67698952,195.17,195.09,22.67698952]
[1734656918018,22.67698952,195.16,195.08,22.67698952]
[1734656918204,22.67698952,195.15,195.08,22.67698952]
[1734656918394,22.67698952,195.15,195.07,23.32333662]
[1734656918595,22.67698952,195.14,195.07,23.32333662]
[1734656918899,22.67698952,195.14,195.08,23.776884]
[1734656919499,22.67698952,195.15,195.08,23.776884]
[1734656920302,22.67698952,195.14,195.08,23.776884]
[1734656920902,23.63789656,195.13,195.07,0.6463471]
[1734656921101,22.67698952,195.13,195.07,0.6463471]
[1734656924834,22.67698952,195.09,195.07,0.6463471]
[1734656925326,24.31158952,195.11,195.07,0.6463471]
[1734656926523,22.67698952,195.1,195.07,0.6463471]
[1734656926724,22.67698952,195.08,195.07,0.6463471]
[1734656927830,23.63849435,195.08,195.07,0.6463471]
[1734656928606,22.67698952,195.08,195.07,0.6463471]
[1734656931139,22.67698952,195.1,195.07,0.6463471]
[1734656931434,22.67698952,195.09,195.07,0.6463471]
[1734656931607,23.63813358,195.09,195.07,0.6463471]
[1734656932447,22.67698952,195.09,195.07,0.6463471]
[1734656933751,23.63817612,195.08,195.07,0.6463471]
[1734656934109,22.67698952,195.09,195.07,0.6463471]
[1734656934311,23.63813807,195.08,195.07,0.6463471]
[1734656935315,47.41502207,195.08,195.07,0.6463471]
[1734656936232,47.41502207,195.08,195.0,3.0]
[1734656936443,22.67698952,195.04,195.0,3.0]
[1734656937636,22.67698952,195.08,195.0,25.67698952]
[1734656938131,23.63823162,195.1,195.02,22.67698952]
[1734656938339,22.67698952,195.08,195.0,45.67698952]
[1734656938727,22.67698952,195.1,195.02,22.67698952]
[1734656939937,22.67698952,195.1,195.01,0.5800737]
[1734656939938,22.67698952,195.1,195.03,22.67698952]
[1734656940233,22.67698952,195.11,195.03,22.67698952]
[1734656940455,22.67698952,195.16,195.09,22.67698952]
[1734656940750,22.67698952,195.14,195.06,22.67698952]
[1734656940954,22.67698952,195.11,195.03,22.67698952]
[1734656941249,23.63815193,195.1,195.02,22.67698952]
[1734656941458,22.67698952,195.09,195.01,22.67698952]
[1734656941658,22.67698952,195.06,195.0,3.0]
[1734656941958,22.67698952,195.08,195.0,25.67698952]
[1734656942441,22.67698952,195.1,195.03,22.67698952]
[1734656942647,23.63812006,195.09,195.01,22.67698952]
[1734656942849,22.67698952,195.09,195.02,22.67698952]
[1734656943244,22.67698952,195.1,195.02,22.67698952]
[1734656943435,43.776884,195.12,195.01,22.67698952]
[1734656943436,23.63817086,195.09,195.01,22.67698952]
[1734656943748,23.63817086,195.09,195.02,22.67698952]
[1734656943962,23.63818192,195.12,195.04,22.67698952]
[1734656944164,22.67698952,195.14,195.06,22.67698952]
[1734656944331,22.67698952,195.15,195.07,22.67698952]
[1734656944534,22.67698952,195.13,195.06,22.67698952]
[1734656944735,22.67698952,195.15,195.08,22.67698952]
[1734656945227,22.67698952,195.16,195.08,22.67698952]
[1734656945428,22.67698952,195.12,195.04,22.67698952]
[1734656945756,23.63811178,195.11,195.03,22.67698952]
[1734656945939,23.63811178,195.11,195.0,3.0]
[1734656945940,22.67698952,195.09,195.02,22.67698952]
[1734656946141,23.63829756,195.08,195.0,25.67698952]
[1734656947431,22.67698952,195.04,195.0,3.0]
[1734656947955,0.96149293,195.06,195.0,3.0]
[1734656947956,23.776884,195.05,195.0,3.0]
[1734656949060,0.96142458,195.04,195.0,3.0]
[1734656949265,46.45387352,195.03,195.0,3.0]
[1734656949470,0.96158493,195.02,195.0,3.0]
[1734656949636,23.776884,195.01,195.0,3.0]
[1734656949838,46.45387352,195.01,195.0,3.0]
[1734656950654,47.41570247,195.01,195.0,3.0]
[1734656951738,46.45387352,195.01,195.0,3.0]
[1734656955162,47.41586932,195.01,195.0,1.3334]
[1734656955353,43.776884,194.97,194.87,0.6463471]
[1734656955534,22.67698952,194.9,194.87,0.6463471]
[1734656955738,0.96219467,194.89,194.87,0.6463471]
[1734656956165,42.67698952,194.92,194.87,0.6463471]
[1734656956465,23.63916247,194.91,194.87,0.6463471]
[1734656956661,23.776884,194.9,194.87,0.6463471]
[1734656956861,24.7390762,194.9,194.87,0.6463471]
[1734656957165,0.9621456,194.96,194.89,22.67698952]
[1734656957363,23.63913512,194.96,194.89,22.67698952]
[1734656957787,23.63913512,194.96,194.88,22.67698952]
[1734656958981,22.67698952,194.97,194.89,22.67698952]
[1734656959504,23.63881913,194.96,194.89,22.67698952]
[1734656959727,23.63884208,194.97,194.89,22.67698952]
[1734656960209,22.67698952,194.96,194.89,22.67698952]
[1734656960369,0.9618727,194.95,194.87,36.15233662]
[1734656960573,0.9618727,194.95,194.87,23.32333662]
[1734656960767,22.67698952,194.96,194.89,22.67698952]
[1734656960966,22.67698952,194.99,194.92,22.67698952]
[1734656961183,22.67698952,195.01,194.93,22.67698952]
[1734656961396,22.67698952,195.02,194.94,22.67698952]
[1734656961582,23.6385747,195.01,194.94,22.67698952]
[1734656962012,23.6385747,195.01,194.93,22.67698952]
[1734656963699,22.67698952,194.98,194.91,22.67698952]
[1734656964473,0.9617523,194.97,194.91,22.67698952]
[1734656965689,23.63883629,194.98,194.91,22.67698952]
[1734656967308,23.776884,194.97,194.91,22.67698952]
[1734656967502,23.63891357,194.96,194.88,22.67698952]
[1734656967697,22.67698952,194.94,194.87,0.6463471]
[1734656968012,0.96204001,194.93,194.87,0.6463471]
[1734656968698,22.67698952,194.92,194.87,0.6463471]
[1734656968894,23.63913447,194.91,194.87,0.6463471]
[1734656969102,0.96214495,194.91,194.87,0.6463471]
[1734656969299,29.80107601,194.94,194.87,0.6463471]
[1734656969501,23.776884,194.97,194.9,22.67698952]
[1734656969819,28.68208952,194.99,194.92,22.67698952]
[1734656970022,0.96181647,195.02,194.97,22.67698952]
[1734656970173,22.67698952,195.06,194.99,22.67698952]
[1734656970396,23.63835904,195.05,194.97,22.67698952]
[1734656970704,22.67698952,195.01,194.93,22.67698952]
[1734656970925,22.67698952,195.02,194.94,22.67698952]
[1734656971100,0.96161636,195.01,194.94,22.67698952]
[1734656972775,22.67698952,195.03,194.95,22.67698952]
[1734656973101,6.0051,195.09,195.01,22.67698952]
[1734656973102,23.63852232,195.09,195.01,22.67698952]
[1734656973413,0.9615328,195.09,195.03,22.67698952]
[1734656973705,0.96120745,195.1,195.03,22.67698952]
[1734656975305,22.67698952,195.09,195.01,22.67698952]
[1734656975513,22.67698952,195.07,194.99,35.49778952]
[1734656975811,0.96135794,195.06,194.99,35.49778952]
[1734656976015,23.63834746,195.06,194.99,35.49778952]
[1734656976391,23.63834746,195.06,194.96,12.823]
[1734656976711,22.67698952,195.04,194.96,22.67698952]
[1734656977121,22.67698952,195.06,194.99,22.67698952]
[1734656978287,0.96138204,195.05,194.98,22.67698952]
[1734656978791,23.63837156,195.05,194.97,22.67698952]
[1734656978995,22.67698952,195.06,194.99,22.67698952]
[1734656979297,0.96138683,195.05,194.99,22.67698952]
[1734656980691,22.67698952,195.03,194.95,22.67698952]
[1734656980894,23.63854498,195.03,194.96,22.67698952]
[1734656981095,22.67698952,195.06,194.98,22.67698952]
[1734656981406,0.96140058,195.05,194.98,22.67698952]
[1734656981699,23.776884,195.04,194.97,22.67698952]
[1734656981899,46.45387352,195.02,194.94,22.67698952]
[1734656982106,0.96157944,195.01,194.95,22.67698952]
[1734656984402,0.96157944,195.01,194.94,22.67698952]
[1734656984995,0.96157944,195.01,194.95,22.67698952]
[1734656986709,22.67698952,195.06,194.98,22.67698952]
[1734656986896,22.67698952,195.06,194.93,12.8246]
[1734656986897,0.96142738,195.05,194.99,22.67698952]
[1734656987612,22.67698952,195.04,194.93,13.40522648]
[1734656987910,22.67698952,195.02,194.94,22.67698952]
[1734656988111,22.67698952,194.99,194.92,22.67698952]
[1734656988284,23.776884,195.0,194.87,0.6463471]
[1734656988285,22.67698952,194.96,194.88,22.67698952]
[1734656988490,23.63893238,194.95,194.88,22.67698952]
[1734656989211,0.96194286,194.95,194.88,22.67698952]
[1734656989421,23.63893238,194.95,194.87,23.32333662]
[1734656989806,46.45387352,194.94,194.87,0.6463471]
[1734656990013,22.67698952,194.92,194.87,0.6463471]
[1734656990224,0.96213414,194.91,194.87,0.6463471]
[1734656990924,46.45387352,194.88,194.87,0.6463471]
[1734656991106,47.41626271,194.88,194.87,0.6463471]
[1734656994837,46.45387352,194.88,194.87,0.6463471]
[1734656995194,29.84710687,194.9,194.87,0.6463471]
[1734656995391,23.776884,194.89,194.87,0.6463471]
[1734656995619,6.2077,194.9,194.87,0.6463471]
[1734656995815,22.67698952,194.93,194.87,0.6463471]
[1734656996122,0.96209254,194.92,194.87,23.32333662]
[1734656996301,22.67698952,194.91,194.87,0.6463471]
[1734656996502,23.63919603,194.9,194.87,0.6463471]
[1734656996910,22.67698952,194.89,194.87,0.6463471]
[1734656997113,0.96231874,194.88,194.87,0.6463471]
[1734656997320,47.41619226,194.88,194.87,0.6463471]
[1734656997510,24.73920274,194.88,194.87,0.6463471]
[1734656998010,0.96231874,194.88,194.87,0.6463471]
[1734656998213,0.96222654,194.89,194.87,0.6463471]
[1734656999329,23.776884,194.88,194.87,0.6463471]
[1734656999509,23.63921606,194.89,194.87,0.6463471]
[1734657000235,0.96222654,194.89,194.87,0.6463471]
[1734657000421,0.96219531,194.89,194.87,0.6463471]
[1734657000799,23.63918483,194.89,194.87,0.6463471]
[1734657001005,22.67698952,194.88,194.87,0.6463471]
[1734657001507,52.66157352,194.88,194.87,0.6463471]
[1734657002523,52.66157352,194.88,194.71,12.8389]
[1734657002524,20.0,194.85,194.71,22.67698952]
[1734657002713,22.67698952,194.78,194.69,22.67698952]
[1734657002918,22.67698952,194.74,194.67,23.32333662]
[1734657003116,0.96298442,194.73,194.67,0.6463471]
[1734657003418,0.9629801,194.77,194.71,22.67698952]
[1734657003612,22.67698952,194.81,194.74,22.67698952]
[1734657003812,0.96262576,194.8,194.74,22.67698952]
[1734657004124,23.63962003,194.81,194.74,22.67698952]
[1734657004339,0.96263051,194.81,194.73,22.67698952]
[1734657004504,22.67698952,194.8,194.73,22.67698952]
[1734657004720,6.2459,194.83,194.7,0.58295935]
[1734657004721,23.63968817,194.79,194.72,42.67698952]
[1734657004915,22.67698952,194.8,194.73,22.67698952]